[Event "*** SCC Grand Prix: Titled Tuesday Blitz"]
[Site "Chess.com"]
[Date "2020.08.11"]
[Round "3"]
[White "Chessdemon2019"]
[Black "BulletMercenary"]
[Result "1/2-1/2"]
[WhiteElo "2348"]
[BlackElo "2153"]
[TimeControl "180+1"]
[EndTime "10:29:34 PDT"]
[Termination "Game drawn by repetition"]

1. e4 {[%clk 0:03:00.9]} 1... d6 {[%clk 0:02:55.3]} 2. d4 {[%clk 0:03:00.5]}
2... Nf6 {[%clk 0:02:55]} 3. Nc3 {[%clk 0:03:00.1]} 3... g6 {[%clk 0:02:50.8]}
4. Bg5 {[%clk 0:02:57.7]} 4... Bg7 {[%clk 0:02:51.1]} 5. e5 {[%clk 0:02:57.6]}
5... dxe5 {[%clk 0:02:49.5]} 6. dxe5 {[%clk 0:02:57.5]} 6... Qxd1+ {[%clk
0:02:50.4]} 7. Rxd1 {[%clk 0:02:57.1]} 7... Ng4 {[%clk 0:02:47.4]} 8. Nd5 {[%clk
0:02:50.9]} 8... Bxe5 {[%clk 0:02:45]} 9. f4 {[%clk 0:02:50.8]} 9... Bd6 {[%clk
0:02:44.5]} 10. Bxe7 {[%clk 0:02:51]} 10... Ne3 {[%clk 0:02:05.8]} 11. Bxd6
{[%clk 0:02:20.6]} 11... Nxd5 {[%clk 0:02:03.9]} 12. Be5 {[%clk 0:02:08.9]}
12... f6 {[%clk 0:02:01.4]} 13. Rxd5 {[%clk 0:02:07.6]} 13... fxe5 {[%clk
0:02:01.3]} 14. Rxe5+ {[%clk 0:02:08.2]} 14... Kf7 {[%clk 0:02:01.3]} 15. Bc4+
{[%clk 0:02:08.2]} 15... Kf6 {[%clk 0:02:01.3]} 16. Nf3 {[%clk 0:02:07.6]} 16...
Nc6 {[%clk 0:02:01.4]} 17. Re3 {[%clk 0:02:05.7]} 17... Bf5 {[%clk 0:01:57.3]}
18. O-O {[%clk 0:02:00.9]} 18... Bxc2 {[%clk 0:01:54.2]} 19. Re6+ {[%clk
0:02:00.7]} 19... Kg7 {[%clk 0:01:54.1]} 20. Ne5 {[%clk 0:01:59.9]} 20... Rhe8
{[%clk 0:01:46.1]} 21. Nxc6 {[%clk 0:01:41.1]} 21... Rxe6 {[%clk 0:01:39.9]} 22.
Bxe6 {[%clk 0:01:40.6]} 22... bxc6 {[%clk 0:01:40.2]} 23. Rc1 {[%clk 0:01:34.7]}
23... Be4 {[%clk 0:01:35.3]} 24. Bd7 {[%clk 0:01:32.7]} 24... Rb8 {[%clk
0:01:15.5]} 25. Bxc6 {[%clk 0:01:32.4]} 25... Bxc6 {[%clk 0:00:50.6]} 26. Rxc6
{[%clk 0:01:31.7]} 26... Rxb2 {[%clk 0:00:51.3]} 27. Rxc7+ {[%clk 0:01:31.6]}
27... Kf6 {[%clk 0:00:52]} 28. Rxa7 {[%clk 0:01:31.5]} 28... Kf5 {[%clk
0:00:51.6]} 29. Ra4 {[%clk 0:01:12.9]} 29... Kg4 {[%clk 0:00:47.6]} 30. a3
{[%clk 0:01:10.8]} 30... Ra2 {[%clk 0:00:47.3]} 31. Kf1 {[%clk 0:01:09.3]} 31...
h5 {[%clk 0:00:45.4]} 32. Ra6 {[%clk 0:00:40.6]} 32... Kxf4 {[%clk 0:00:37.8]}
33. a4 {[%clk 0:00:35.7]} 33... g5 {[%clk 0:00:35.4]} 34. a5 {[%clk 0:00:34.7]}
34... h4 {[%clk 0:00:23.9]} 35. Ra8 {[%clk 0:00:18.8]} 35... Ke3 {[%clk
0:00:22.9]} 36. Re8+ {[%clk 0:00:18]} 36... Kf4 {[%clk 0:00:22.3]} 37. Rf8+
{[%clk 0:00:13]} 37... Ke3 {[%clk 0:00:20.2]} 38. Re8+ {[%clk 0:00:10.5]} 38...
Kf4 {[%clk 0:00:20.3]} 39. Ra8 {[%clk 0:00:07.8]} 39... Ke3 {[%clk 0:00:19.7]}
40. Re8+ {[%clk 0:00:04.9]} 1/2-1/2

[Event "*** SCC Grand Prix: Titled Tuesday Blitz"]
[Site "Chess.com"]
[Date "2020.08.11"]
[Round "3"]
[White "MestreSoares"]
[Black "Duong57"]
[Result "1-0"]
[WhiteElo "2161"]
[BlackElo "2330"]
[TimeControl "180+1"]
[EndTime "10:29:34 PDT"]
[Termination "MestreSoares won by resignation"]

1. Nf3 {[%clk 0:02:57.1]} 1... d5 {[%clk 0:02:59.9]} 2. b3 {[%clk 0:02:57.2]}
2... c5 {[%clk 0:02:53.6]} 3. e3 {[%clk 0:02:56.5]} 3... Nc6 {[%clk 0:02:53.8]}
4. Bb2 {[%clk 0:02:56.1]} 4... Qc7 {[%clk 0:02:44.7]} 5. d4 {[%clk 0:02:55.2]}
5... Bg4 {[%clk 0:02:42.2]} 6. Be2 {[%clk 0:02:54.7]} 6... cxd4 {[%clk
0:02:35.1]} 7. Nxd4 {[%clk 0:02:53.8]} 7... Bxe2 {[%clk 0:02:33.3]} 8. Qxe2
{[%clk 0:02:53.7]} 8... e5 {[%clk 0:02:32.4]} 9. Nxc6 {[%clk 0:02:51.9]} 9...
bxc6 {[%clk 0:02:32.6]} 10. O-O {[%clk 0:02:51.4]} 10... Nf6 {[%clk 0:02:31.6]}
11. c4 {[%clk 0:02:49.9]} 11... Bd6 {[%clk 0:02:30]} 12. h3 {[%clk 0:02:48.5]}
12... O-O {[%clk 0:02:29.4]} 13. cxd5 {[%clk 0:02:46.9]} 13... cxd5 {[%clk
0:02:30.3]} 14. Nc3 {[%clk 0:02:45.7]} 14... a6 {[%clk 0:02:21.9]} 15. Rac1
{[%clk 0:02:44.6]} 15... Qb7 {[%clk 0:02:20.2]} 16. Rfd1 {[%clk 0:02:43.9]}
16... Rac8 {[%clk 0:02:11.1]} 17. Na4 {[%clk 0:02:41.1]} 17... Rxc1 {[%clk
0:01:42.6]} 18. Rxc1 {[%clk 0:02:39.6]} 18... Rc8 {[%clk 0:01:43.2]} 19. Qd1
{[%clk 0:02:30]} 19... h6 {[%clk 0:01:36]} 20. Nc3 {[%clk 0:02:05.3]} 20... Bb4
{[%clk 0:01:02.4]} 21. Nxd5 {[%clk 0:01:37.4]} 21... Rxc1 {[%clk 0:00:44.6]} 22.
Nxf6+ {[%clk 0:01:34.1]} 22... gxf6 {[%clk 0:00:45.5]} 23. Qxc1 {[%clk 0:01:34]}
23... Qd7 {[%clk 0:00:43.3]} 24. Qc2 {[%clk 0:01:28.2]} 24... Kg7 {[%clk
0:00:32.1]} 25. Kh2 {[%clk 0:01:22.7]} 25... Ba5 {[%clk 0:00:31.3]} 26. g3
{[%clk 0:01:18.3]} 26... Bc7 {[%clk 0:00:28.8]} 27. Kg2 {[%clk 0:01:13.6]} 27...
f5 {[%clk 0:00:28.6]} 28. Qe2 {[%clk 0:01:04.8]} 28... f6 {[%clk 0:00:25.6]} 29.
Qc4 {[%clk 0:00:52.9]} 29... a5 {[%clk 0:00:22.2]} 30. Ba3 {[%clk 0:00:47.2]}
30... Bb8 {[%clk 0:00:20.4]} 31. Qc5 {[%clk 0:00:36.2]} 31... Qb7+ {[%clk
0:00:20.2]} 32. Kh2 {[%clk 0:00:34.1]} 32... Qd7 {[%clk 0:00:18.3]} 33. Qf8+
{[%clk 0:00:27.3]} 33... Kh7 {[%clk 0:00:18.2]} 34. Qxb8 {[%clk 0:00:26.7]}
34... Qd2 {[%clk 0:00:16.1]} 35. Qb7+ {[%clk 0:00:24.6]} 35... Kg6 {[%clk
0:00:16.4]} 36. Kg2 {[%clk 0:00:20.6]} 36... f4 {[%clk 0:00:16.2]} 37. exf4
{[%clk 0:00:17.5]} 37... e4 {[%clk 0:00:13.7]} 38. Qxe4+ {[%clk 0:00:16.9]}
38... f5 {[%clk 0:00:12.8]} 39. Qc6+ {[%clk 0:00:14.9]} 1-0

[Event "*** SCC Grand Prix: Titled Tuesday Blitz"]
[Site "Chess.com"]
[Date "2020.08.11"]
[Round "3"]
[White "Ze-Pequeno"]
[Black "Falia-p"]
[Result "1-0"]
[WhiteElo "2152"]
[BlackElo "2318"]
[TimeControl "180+1"]
[EndTime "10:29:34 PDT"]
[Termination "Ze-Pequeno won by resignation"]

1. e4 {[%clk 0:03:00.9]} 1... c6 {[%clk 0:02:59.4]} 2. d4 {[%clk 0:03:00.4]}
2... d5 {[%clk 0:03:00.3]} 3. Nc3 {[%clk 0:03:00.8]} 3... dxe4 {[%clk 0:03:00]}
4. Nxe4 {[%clk 0:03:01.5]} 4... Nf6 {[%clk 0:03:00.5]} 5. Nxf6+ {[%clk
0:03:01.6]} 5... exf6 {[%clk 0:03:01.4]} 6. c3 {[%clk 0:03:02.3]} 6... Bd6
{[%clk 0:03:01.9]} 7. Bd3 {[%clk 0:03:03.2]} 7... O-O {[%clk 0:03:02.5]} 8. Qc2
{[%clk 0:03:04.1]} 8... Re8+ {[%clk 0:03:03]} 9. Ne2 {[%clk 0:03:05]} 9... h5
{[%clk 0:03:03.9]} 10. O-O {[%clk 0:03:04.2]} 10... h4 {[%clk 0:03:03.3]} 11. h3
{[%clk 0:03:01.4]} 11... Nd7 {[%clk 0:03:02.3]} 12. Bf4 {[%clk 0:03:00.4]} 12...
Nf8 {[%clk 0:02:59.7]} 13. Bxd6 {[%clk 0:02:58.6]} 13... Qxd6 {[%clk 0:03:00.6]}
14. Rfe1 {[%clk 0:02:58.7]} 14... Be6 {[%clk 0:02:57.8]} 15. Rad1 {[%clk
0:02:53.8]} 15... g5 {[%clk 0:02:48.4]} 16. Bf5 {[%clk 0:02:37.6]} 16... Kg7
{[%clk 0:02:45.1]} 17. c4 {[%clk 0:02:34.5]} 17... a5 {[%clk 0:02:42.9]} 18. a3
{[%clk 0:02:23.3]} 18... Qd7 {[%clk 0:02:32.8]} 19. Bxe6 {[%clk 0:02:19.5]}
19... Nxe6 {[%clk 0:02:32.8]} 20. d5 {[%clk 0:02:15.7]} 20... Nc5 {[%clk
0:02:27.7]} 21. b4 {[%clk 0:02:01.8]} 21... axb4 {[%clk 0:02:26.8]} 22. axb4
{[%clk 0:02:01.7]} 22... Ne4 {[%clk 0:02:26.5]} 23. Nd4 {[%clk 0:02:00.8]} 23...
cxd5 {[%clk 0:02:23.3]} 24. c5 {[%clk 0:01:38.5]} 24... g4 {[%clk 0:02:17.1]}
25. hxg4 {[%clk 0:01:34.3]} 25... h3 {[%clk 0:02:00.6]} 26. gxh3 {[%clk
0:01:30.1]} 26... Rh8 {[%clk 0:02:00.5]} 27. Kg2 {[%clk 0:01:22.3]} 27... Ra3
{[%clk 0:01:56.4]} 28. Re3 {[%clk 0:01:11.6]} 28... Rxe3 {[%clk 0:01:45.3]} 29.
Nf5+ {[%clk 0:01:10.8]} 29... Kg8 {[%clk 0:01:40.6]} 30. Nxe3 {[%clk 0:01:10.3]}
30... Qe6 {[%clk 0:01:33.3]} 31. Rxd5 {[%clk 0:01:06.4]} 31... Ng5 {[%clk
0:01:32.9]} 32. Rd8+ {[%clk 0:01:02]} 32... Kg7 {[%clk 0:01:33.1]} 33. Nf5+
{[%clk 0:01:01.3]} 33... Kh7 {[%clk 0:01:32.9]} 34. Nd4+ {[%clk 0:00:59.5]}
34... Qe4+ {[%clk 0:01:30.4]} 35. Qxe4+ {[%clk 0:00:59.2]} 35... Nxe4 {[%clk
0:01:31]} 36. Rd7 {[%clk 0:00:58.6]} 36... Rb8 {[%clk 0:01:20.1]} 37. Rxf7+
{[%clk 0:00:57.3]} 37... Kg6 {[%clk 0:01:21]} 38. Re7 {[%clk 0:00:57.3]} 38...
Nc3 {[%clk 0:01:18.6]} 39. Rd7 {[%clk 0:00:47.4]} 39... Ne4 {[%clk 0:01:11.5]}
40. f4 {[%clk 0:00:44.9]} 40... Nc3 {[%clk 0:01:05.3]} 41. f5+ {[%clk
0:00:35.4]} 41... Kg5 {[%clk 0:01:02.5]} 42. Ne6+ {[%clk 0:00:34.9]} 42... Kh6
{[%clk 0:01:01.3]} 43. Rf7 {[%clk 0:00:33.7]} 43... Ra8 {[%clk 0:00:58]} 44.
Rxf6+ {[%clk 0:00:33.1]} 44... Kh7 {[%clk 0:00:58.9]} 45. Rf7+ {[%clk
0:00:33.1]} 45... Kg8 {[%clk 0:00:59.1]} 46. Rxb7 {[%clk 0:00:32.5]} 46... Nd5
{[%clk 0:00:59.1]} 47. g5 {[%clk 0:00:28.4]} 47... Ra3 {[%clk 0:00:56.6]} 48. f6
{[%clk 0:00:27.1]} 48... Ne3+ {[%clk 0:00:56.5]} 49. Kh2 {[%clk 0:00:25.4]}
49... Nf5 {[%clk 0:00:53.9]} 50. f7+ {[%clk 0:00:23.3]} 50... Kh7 {[%clk
0:00:52.2]} 51. f8=Q+ {[%clk 0:00:22.5]} 1-0

[Event "*** SCC Grand Prix: Titled Tuesday Blitz"]
[Site "Chess.com"]
[Date "2020.08.11"]
[Round "3"]
[White "Heineccius"]
[Black "mishikomchedlishvili"]
[Result "0-1"]
[WhiteElo "2605"]
[BlackElo "2812"]
[TimeControl "180+1"]
[EndTime "10:29:37 PDT"]
[Termination "mishikomchedlishvili won by resignation"]

1. d4 {[%clk 0:03:00.9]} 1... d5 {[%clk 0:02:56.4]} 2. c4 {[%clk 0:03:00.7]}
2... c6 {[%clk 0:02:56.2]} 3. Nf3 {[%clk 0:03:00.1]} 3... Nf6 {[%clk 0:02:55.4]}
4. e3 {[%clk 0:03:00]} 4... Bf5 {[%clk 0:02:54.2]} 5. Nc3 {[%clk 0:02:57]} 5...
e6 {[%clk 0:02:54.4]} 6. Nh4 {[%clk 0:02:56.1]} 6... Be4 {[%clk 0:02:54.4]} 7.
f3 {[%clk 0:02:54]} 7... Bg6 {[%clk 0:02:52.5]} 8. cxd5 {[%clk 0:02:52.3]} 8...
cxd5 {[%clk 0:02:50.2]} 9. e4 {[%clk 0:02:41.6]} 9... Nxe4 {[%clk 0:02:15]} 10.
Nxg6 {[%clk 0:02:04]} 10... Nxc3 {[%clk 0:02:13.9]} 11. Qb3 {[%clk 0:01:55.5]}
11... hxg6 {[%clk 0:02:09.3]} 12. Qxb7 {[%clk 0:01:54.5]} 12... Nd7 {[%clk
0:01:17.8]} 13. bxc3 {[%clk 0:01:53.5]} 13... Bd6 {[%clk 0:01:16.8]} 14. Bg5
{[%clk 0:01:07]} 14... Qc8 {[%clk 0:01:13]} 15. Qb3 {[%clk 0:00:40.8]} 15... Rb8
{[%clk 0:01:11.1]} 16. Qc2 {[%clk 0:00:40]} 16... Bxh2 {[%clk 0:01:02.1]} 17.
Kd1 {[%clk 0:00:28.3]} 17... Rh5 {[%clk 0:01:02]} 18. g4 {[%clk 0:00:23.1]}
18... Rxg5 {[%clk 0:00:45.5]} 19. Rxh2 {[%clk 0:00:20.5]} 19... Ke7 {[%clk
0:00:42.4]} 20. Qd2 {[%clk 0:00:17.4]} 20... f6 {[%clk 0:00:42.5]} 21. Bd3
{[%clk 0:00:16.8]} 21... Qc7 {[%clk 0:00:36.4]} 22. Rb1 {[%clk 0:00:14.2]} 22...
Rxb1+ {[%clk 0:00:33.5]} 23. Bxb1 {[%clk 0:00:15.1]} 23... Qg3 {[%clk
0:00:31.7]} 24. Rf2 {[%clk 0:00:14]} 24... Nb6 {[%clk 0:00:29.1]} 25. Bd3 {[%clk
0:00:14.4]} 25... e5 {[%clk 0:00:26.7]} 26. Kc2 {[%clk 0:00:12.7]} 26... e4
{[%clk 0:00:20.2]} 27. fxe4 {[%clk 0:00:11.3]} 27... Rxg4 {[%clk 0:00:16.4]} 28.
exd5 {[%clk 0:00:10.4]} 28... Qd6 {[%clk 0:00:12.7]} 29. Re2+ {[%clk 0:00:10.6]}
29... Kf8 {[%clk 0:00:12.7]} 30. c4 {[%clk 0:00:10.7]} 30... Qa3 {[%clk
0:00:12.4]} 31. Qe3 {[%clk 0:00:10.1]} 31... Qxa2+ {[%clk 0:00:11.4]} 32. Kd1
{[%clk 0:00:09.1]} 32... Qa1+ {[%clk 0:00:11.2]} 33. Kd2 {[%clk 0:00:09.4]}
33... Qb2+ {[%clk 0:00:11.4]} 34. Kd1 {[%clk 0:00:09.9]} 34... Rg1+ {[%clk
0:00:10.1]} 35. Qxg1 {[%clk 0:00:08.3]} 35... Qa1+ {[%clk 0:00:10.1]} 0-1

[Event "*** SCC Grand Prix: Titled Tuesday Blitz"]
[Site "Chess.com"]
[Date "2020.08.11"]
[Round "3"]
[White "Srisshhhtea"]
[Black "Firegrizzly"]
[Result "1/2-1/2"]
[WhiteElo "2334"]
[BlackElo "2545"]
[TimeControl "180+1"]
[EndTime "10:29:37 PDT"]
[Termination "Game drawn - insufficient material"]

1. d4 {[%clk 0:03:00.9]} 1... Nf6 {[%clk 0:02:57.3]} 2. c4 {[%clk 0:02:59.2]}
2... g6 {[%clk 0:02:57.8]} 3. Nc3 {[%clk 0:02:55]} 3... Bg7 {[%clk 0:02:58.7]}
4. e4 {[%clk 0:02:54]} 4... Bf8 {[%clk 0:02:59.6]} 5. Nf3 {[%clk 0:02:46.6]}
5... Bg7 {[%clk 0:03:00.5]} 6. Ng1 {[%clk 0:02:42.1]} 6... d6 {[%clk 0:03:01.4]}
7. Bd3 {[%clk 0:02:36.6]} 7... O-O {[%clk 0:03:02.3]} 8. Nge2 {[%clk 0:02:35.9]}
8... e5 {[%clk 0:03:03.2]} 9. O-O {[%clk 0:02:31.5]} 9... exd4 {[%clk
0:03:04.1]} 10. Nxd4 {[%clk 0:02:30.5]} 10... c6 {[%clk 0:03:01.3]} 11. Bc2
{[%clk 0:02:23.2]} 11... a5 {[%clk 0:03:00.6]} 12. Kh1 {[%clk 0:02:20.1]} 12...
Na6 {[%clk 0:02:58.7]} 13. f3 {[%clk 0:02:18.1]} 13... Nc5 {[%clk 0:02:56.8]}
14. Be3 {[%clk 0:02:16.7]} 14... Re8 {[%clk 0:02:52]} 15. Qd2 {[%clk 0:01:55.9]}
15... Nfd7 {[%clk 0:02:46.4]} 16. Rad1 {[%clk 0:01:52.2]} 16... Qh4 {[%clk
0:02:43]} 17. Bg5 {[%clk 0:01:44.1]} 17... Qh5 {[%clk 0:02:41.7]} 18. g4 {[%clk
0:01:24.5]} 18... Qh3 {[%clk 0:02:40.7]} 19. Nde2 {[%clk 0:01:14.7]} 19... Ne5
{[%clk 0:02:38.9]} 20. Ng1 {[%clk 0:01:11.8]} 20... Nxf3 {[%clk 0:02:33.3]} 21.
Nxh3 {[%clk 0:00:49.7]} 21... Nxd2 {[%clk 0:02:30.7]} 22. Rxd2 {[%clk
0:00:48.2]} 22... Bxg4 {[%clk 0:02:31.3]} 23. Kg2 {[%clk 0:00:43.2]} 23... Be6
{[%clk 0:02:29]} 24. Rxd6 {[%clk 0:00:38]} 24... Bxc4 {[%clk 0:02:28.1]} 25.
Rfd1 {[%clk 0:00:34.9]} 25... Ne6 {[%clk 0:02:26.1]} 26. Be3 {[%clk 0:00:30.2]}
26... a4 {[%clk 0:02:25.3]} 27. Nxa4 {[%clk 0:00:24.6]} 27... Bxa2 {[%clk
0:02:17.6]} 28. Nb6 {[%clk 0:00:22.2]} 28... Rad8 {[%clk 0:02:15.3]} 29. Rxd8
{[%clk 0:00:21]} 29... Rxd8 {[%clk 0:02:13.4]} 30. Rxd8+ {[%clk 0:00:21.5]}
30... Nxd8 {[%clk 0:02:14.3]} 31. b3 {[%clk 0:00:20.7]} 31... Ne6 {[%clk
0:02:13.8]} 32. Nf2 {[%clk 0:00:16.8]} 32... Bd4 {[%clk 0:02:12.4]} 33. Bxd4
{[%clk 0:00:16.2]} 33... Nxd4 {[%clk 0:02:10.9]} 34. Bd1 {[%clk 0:00:15.8]}
34... Bxb3 {[%clk 0:02:10.1]} 35. Bxb3 {[%clk 0:00:15.7]} 35... Nxb3 {[%clk
0:02:11]} 36. Nd3 {[%clk 0:00:15.9]} 36... Kg7 {[%clk 0:02:08.6]} 37. Kf3 {[%clk
0:00:16.1]} 37... h5 {[%clk 0:02:06.8]} 38. Kf4 {[%clk 0:00:16.5]} 38... f6
{[%clk 0:02:02.8]} 39. h4 {[%clk 0:00:14.4]} 39... Kh6 {[%clk 0:02:02]} 40. Nd7
{[%clk 0:00:12.6]} 40... g5+ {[%clk 0:02:01.2]} 41. Kg3 {[%clk 0:00:10.2]} 41...
Kg6 {[%clk 0:02:00.4]} 42. hxg5 {[%clk 0:00:09.2]} 42... fxg5 {[%clk 0:01:58.6]}
43. N3e5+ {[%clk 0:00:09.5]} 43... Kg7 {[%clk 0:01:57.9]} 44. Nf3 {[%clk
0:00:08.4]} 44... Kg6 {[%clk 0:01:57.2]} 45. Nde5+ {[%clk 0:00:07.9]} 45... Kf6
{[%clk 0:01:57.2]} 46. Nd7+ {[%clk 0:00:07.8]} 46... Ke7 {[%clk 0:01:55.5]} 47.
Nde5 {[%clk 0:00:07.7]} 47... g4 {[%clk 0:01:55.1]} 48. Ne1 {[%clk 0:00:04.9]}
48... Nd2 {[%clk 0:01:55.1]} 49. N1d3 {[%clk 0:00:04.9]} 49... Nxe4+ {[%clk
0:01:54.2]} 50. Kf4 {[%clk 0:00:05.5]} 50... Nf6 {[%clk 0:01:55]} 51. Ng6+
{[%clk 0:00:05.2]} 51... Kf7 {[%clk 0:01:54]} 52. Nge5+ {[%clk 0:00:04.6]} 52...
Ke6 {[%clk 0:01:54.1]} 53. Nc5+ {[%clk 0:00:04.8]} 53... Kd5 {[%clk 0:01:54.3]}
54. Nxb7 {[%clk 0:00:04.7]} 54... g3 {[%clk 0:01:54.2]} 55. Nf3 {[%clk
0:00:04.9]} 55... g2 {[%clk 0:01:53.1]} 56. Kg3 {[%clk 0:00:04.2]} 56... c5
{[%clk 0:01:53.5]} 57. Kxg2 {[%clk 0:00:04.2]} 57... c4 {[%clk 0:01:53.5]} 58.
Na5 {[%clk 0:00:04.2]} 58... c3 {[%clk 0:01:53]} 59. Nb3 {[%clk 0:00:04.7]}
59... Ne4 {[%clk 0:01:51.3]} 60. Nc1 {[%clk 0:00:04.1]} 60... Kc4 {[%clk
0:01:48.9]} 61. Ne2 {[%clk 0:00:03.9]} 61... c2 {[%clk 0:01:48.4]} 62. Nc1
{[%clk 0:00:02.8]} 62... Kc3 {[%clk 0:01:48.2]} 63. Kh3 {[%clk 0:00:03.2]} 63...
Kb2 {[%clk 0:01:47.4]} 64. Nd3+ {[%clk 0:00:03.6]} 64... Kc3 {[%clk 0:01:47.8]}
65. Nc1 {[%clk 0:00:03.3]} 65... Nd2 {[%clk 0:01:48.7]} 66. Nxd2 {[%clk
0:00:02.7]} 66... Kxd2 {[%clk 0:01:48.6]} 67. Nb3+ {[%clk 0:00:03.4]} 67... Kc3
{[%clk 0:01:48.8]} 68. Nc1 {[%clk 0:00:03.8]} 68... Kb2 {[%clk 0:01:49.7]} 69.
Nd3+ {[%clk 0:00:04]} 69... Kc3 {[%clk 0:01:49.3]} 70. Nc1 {[%clk 0:00:04]}
70... Kd2 {[%clk 0:01:50.2]} 71. Nb3+ {[%clk 0:00:04.2]} 71... Kd1 {[%clk
0:01:50.1]} 72. Kh4 {[%clk 0:00:04]} 72... c1=Q {[%clk 0:01:51]} 73. Nxc1 {[%clk
0:00:02.7]} 73... Kxc1 {[%clk 0:01:51.9]} 74. Kxh5 {[%clk 0:00:03.6]} 1/2-1/2

[Event "*** SCC Grand Prix: Titled Tuesday Blitz"]
[Site "Chess.com"]
[Date "2020.08.11"]
[Round "3"]
[White "Fighterman91"]
[Black "emiliocordova"]
[Result "0-1"]
[WhiteElo "2622"]
[BlackElo "2837"]
[TimeControl "180+1"]
[EndTime "10:29:38 PDT"]
[Termination "emiliocordova won on time"]

1. e4 {[%clk 0:03:00.9]} 1... c5 {[%clk 0:02:59.8]} 2. Nf3 {[%clk 0:03:01.2]}
2... Nc6 {[%clk 0:02:59.9]} 3. Bb5 {[%clk 0:03:00.7]} 3... e6 {[%clk 0:02:58.5]}
4. O-O {[%clk 0:02:58.1]} 4... Nge7 {[%clk 0:02:58.4]} 5. d4 {[%clk 0:02:58.5]}
5... cxd4 {[%clk 0:02:58.2]} 6. Nxd4 {[%clk 0:02:59]} 6... Ng6 {[%clk
0:02:58.6]} 7. Be2 {[%clk 0:02:47.3]} 7... Be7 {[%clk 0:02:53.4]} 8. Be3 {[%clk
0:02:41.8]} 8... O-O {[%clk 0:02:52.4]} 9. Nb3 {[%clk 0:02:38.4]} 9... b6 {[%clk
0:02:50.3]} 10. c4 {[%clk 0:02:38.6]} 10... Bb7 {[%clk 0:02:50.5]} 11. Nc3
{[%clk 0:02:39]} 11... f5 {[%clk 0:02:41.7]} 12. exf5 {[%clk 0:02:23]} 12...
Rxf5 {[%clk 0:02:42.6]} 13. f4 {[%clk 0:02:00.4]} 13... Rc8 {[%clk 0:02:34]} 14.
Bd3 {[%clk 0:01:54.1]} 14... Rf7 {[%clk 0:02:30]} 15. Be4 {[%clk 0:01:37.9]}
15... Qc7 {[%clk 0:02:26.5]} 16. Nb5 {[%clk 0:01:33.9]} 16... Qb8 {[%clk
0:02:25.7]} 17. Qxd7 {[%clk 0:01:16.1]} 17... Bc5 {[%clk 0:02:20.7]} 18. Nxc5
{[%clk 0:01:12.1]} 18... Rxd7 {[%clk 0:02:15.6]} 19. Nxd7 {[%clk 0:01:12.5]}
19... Qa8 {[%clk 0:02:16.1]} 20. Nd6 {[%clk 0:01:01.4]} 20... Rc7 {[%clk
0:02:03.1]} 21. Ne5 {[%clk 0:00:40]} 21... Ncxe5 {[%clk 0:01:46.8]} 22. Bxb7
{[%clk 0:00:30.9]} 22... Rxb7 {[%clk 0:01:46.7]} 23. fxe5 {[%clk 0:00:31.4]}
23... Rd7 {[%clk 0:01:46.3]} 24. Bd4 {[%clk 0:00:27.9]} 24... Nh4 {[%clk
0:01:13.1]} 25. Rf2 {[%clk 0:00:27.8]} 25... g6 {[%clk 0:01:10.5]} 26. Raf1
{[%clk 0:00:26.4]} 26... Nf5 {[%clk 0:01:06.5]} 27. Bc3 {[%clk 0:00:22.3]} 27...
h5 {[%clk 0:01:04.2]} 28. Rf3 {[%clk 0:00:13.2]} 28... Kh7 {[%clk 0:00:59.9]}
29. Re1 {[%clk 0:00:10.3]} 29... Qc6 {[%clk 0:00:46.4]} 30. Ref1 {[%clk
0:00:07.1]} 30... a6 {[%clk 0:00:44.1]} 31. b3 {[%clk 0:00:06.7]} 31... b5
{[%clk 0:00:44]} 32. cxb5 {[%clk 0:00:06.2]} 32... axb5 {[%clk 0:00:44.4]} 33.
Bb2 {[%clk 0:00:03.9]} 33... Qc5+ {[%clk 0:00:40.6]} 34. Kh1 {[%clk 0:00:03.6]}
34... Ra7 {[%clk 0:00:39.4]} 35. a3 {[%clk 0:00:03.2]} 35... Qc2 {[%clk
0:00:38.3]} 36. R3f2 {[%clk 0:00:03.2]} 36... Qxb3 {[%clk 0:00:38]} 37. Ne4
{[%clk 0:00:03.1]} 37... Kg7 {[%clk 0:00:30.9]} 38. Ng5 {[%clk 0:00:02.7]} 38...
Rd7 {[%clk 0:00:28.9]} 39. Ne4 {[%clk 0:00:02.8]} 39... Rd1 {[%clk 0:00:27.6]}
40. Ba1 {[%clk 0:00:02.1]} 40... Qb1 {[%clk 0:00:25.7]} 41. Kg1 {[%clk
0:00:01.8]} 41... Qxa1 {[%clk 0:00:25.3]} 0-1

[Event "*** SCC Grand Prix: Titled Tuesday Blitz"]
[Site "Chess.com"]
[Date "2020.08.11"]
[Round "3"]
[White "Izoria123"]
[Black "maximnovik"]
[Result "1-0"]
[WhiteElo "2866"]
[BlackElo "2450"]
[TimeControl "180+1"]
[EndTime "10:29:40 PDT"]
[Termination "Izoria123 won by checkmate"]

1. Nf3 {[%clk 0:03:00.9]} 1... Nf6 {[%clk 0:02:59.5]} 2. c4 {[%clk 0:03:00.6]}
2... g6 {[%clk 0:02:59.8]} 3. Nc3 {[%clk 0:02:59.9]} 3... d5 {[%clk 0:03:00]} 4.
cxd5 {[%clk 0:02:57]} 4... Nxd5 {[%clk 0:03:00]} 5. d3 {[%clk 0:02:46.5]} 5...
Bg7 {[%clk 0:02:58.6]} 6. Bd2 {[%clk 0:02:46.8]} 6... O-O {[%clk 0:02:56.4]} 7.
g3 {[%clk 0:02:45]} 7... c5 {[%clk 0:02:56.2]} 8. Bg2 {[%clk 0:02:44.7]} 8...
Nc6 {[%clk 0:02:55.9]} 9. h4 {[%clk 0:02:39.1]} 9... Nxc3 {[%clk 0:02:41.2]} 10.
bxc3 {[%clk 0:02:37.8]} 10... h6 {[%clk 0:02:35.3]} 11. O-O {[%clk 0:02:30.3]}
11... b6 {[%clk 0:02:04.2]} 12. h5 {[%clk 0:02:01.7]} 12... gxh5 {[%clk
0:01:56.8]} 13. Qa4 {[%clk 0:01:55.6]} 13... Bd7 {[%clk 0:01:45.7]} 14. Qh4
{[%clk 0:01:46.1]} 14... Bg4 {[%clk 0:01:25.3]} 15. Rfe1 {[%clk 0:01:15.4]}
15... Rc8 {[%clk 0:01:15.9]} 16. Rad1 {[%clk 0:01:14.2]} 16... Qd6 {[%clk
0:00:39.5]} 17. Qh1 {[%clk 0:00:54.9]} 17... Rfd8 {[%clk 0:00:30.5]} 18. Nh2
{[%clk 0:00:53.5]} 18... Ne5 {[%clk 0:00:28.4]} 19. Bf4 {[%clk 0:00:48]} 19...
Qg6 {[%clk 0:00:25.1]} 20. Nxg4 {[%clk 0:00:44.4]} 20... hxg4 {[%clk 0:00:24.4]}
21. Be4 {[%clk 0:00:42.4]} 21... f5 {[%clk 0:00:23.6]} 22. Bb7 {[%clk
0:00:41.8]} 22... Rc7 {[%clk 0:00:22.4]} 23. Bd5+ {[%clk 0:00:33.3]} 23... e6
{[%clk 0:00:21.3]} 24. Bb3 {[%clk 0:00:25.1]} 24... Rcd7 {[%clk 0:00:20.1]} 25.
Bxe5 {[%clk 0:00:20.2]} 25... Bxe5 {[%clk 0:00:19.2]} 26. Qc6 {[%clk 0:00:20]}
26... Rd6 {[%clk 0:00:18.9]} 27. Qa4 {[%clk 0:00:11.1]} 27... Bxc3 {[%clk
0:00:17.1]} 28. Rf1 {[%clk 0:00:10.9]} 28... Kg7 {[%clk 0:00:16.1]} 29. Qxa7+
{[%clk 0:00:08]} 29... R8d7 {[%clk 0:00:16.5]} 30. Qa4 {[%clk 0:00:05.9]} 30...
Bf6 {[%clk 0:00:16.7]} 31. e3 {[%clk 0:00:04.9]} 31... h5 {[%clk 0:00:16.8]} 32.
Kg2 {[%clk 0:00:04.7]} 32... h4 {[%clk 0:00:16]} 33. gxh4 {[%clk 0:00:05.6]}
33... Bxh4 {[%clk 0:00:15.3]} 34. Rh1 {[%clk 0:00:05.7]} 34... Bf6 {[%clk
0:00:15.4]} 35. Qf4 {[%clk 0:00:04.8]} 35... e5 {[%clk 0:00:12.5]} 36. Qg3
{[%clk 0:00:03.7]} 36... Rxd3 {[%clk 0:00:10.5]} 37. Rxd3 {[%clk 0:00:02.1]}
37... Rxd3 {[%clk 0:00:10.3]} 38. Qh2 {[%clk 0:00:03]} 38... f4 {[%clk
0:00:09.9]} 39. Qh8# {[%clk 0:00:02.6]} 1-0